[Event "*** SCC Grand Prix: Titled Tuesday Blitz"]
[Site "Chess.com"]
[Date "2020.07.21"]
[Round "8"]
[White "MNyuyu"]
[Black "Schack-Hugo"]
[Result "0-1"]
[WhiteElo "2409"]
[BlackElo "2207"]
[TimeControl "180+1"]
[EndTime "11:38:04 PDT"]
[Termination "Schack-Hugo won on time"]

1. d4 {[%clk 0:03:00.9]} 1... c6 {[%clk 0:03:00.9]} 2. Nf3 {[%clk 0:03:00.3]}
2... d5 {[%clk 0:03:01.8]} 3. Bf4 {[%clk 0:03:00.5]} 3... Nf6 {[%clk 0:03:01.9]}
4. e3 {[%clk 0:03:00.6]} 4... g6 {[%clk 0:03:02.3]} 5. c4 {[%clk 0:03:00.1]}
5... Bg7 {[%clk 0:03:02.5]} 6. Nc3 {[%clk 0:02:59.7]} 6... O-O {[%clk
0:03:02.7]} 7. Be2 {[%clk 0:02:57.9]} 7... e6 {[%clk 0:03:02.5]} 8. h3 {[%clk
0:02:56.5]} 8... Nbd7 {[%clk 0:03:02.6]} 9. O-O {[%clk 0:02:56.2]} 9... b6
{[%clk 0:03:02.3]} 10. Ne5 {[%clk 0:02:55.7]} 10... Bb7 {[%clk 0:03:01.7]} 11.
cxd5 {[%clk 0:02:54.1]} 11... exd5 {[%clk 0:03:01]} 12. Rc1 {[%clk 0:02:51.8]}
12... Re8 {[%clk 0:02:55.7]} 13. Bf3 {[%clk 0:02:45.7]} 13... Nxe5 {[%clk
0:02:48.4]} 14. Bxe5 {[%clk 0:02:43]} 14... Qd7 {[%clk 0:02:34.3]} 15. Qa4
{[%clk 0:02:36.9]} 15... Re7 {[%clk 0:02:13.6]} 16. Rfd1 {[%clk 0:02:35.3]}
16... h6 {[%clk 0:01:55.6]} 17. b4 {[%clk 0:02:31]} 17... b5 {[%clk 0:01:44]}
18. Qb3 {[%clk 0:02:28.9]} 18... Ne8 {[%clk 0:01:28.9]} 19. Bg3 {[%clk
0:02:24.9]} 19... Nd6 {[%clk 0:01:25.7]} 20. a4 {[%clk 0:02:21.9]} 20... a6
{[%clk 0:01:22.8]} 21. axb5 {[%clk 0:02:20.5]} 21... axb5 {[%clk 0:01:21.6]} 22.
Ra1 {[%clk 0:02:18.9]} 22... Ree8 {[%clk 0:01:21.1]} 23. Bxd6 {[%clk 0:02:15.2]}
23... Qxd6 {[%clk 0:01:19.7]} 24. Ne2 {[%clk 0:02:08.3]} 24... Bf8 {[%clk
0:01:17.7]} 25. Rab1 {[%clk 0:02:05.3]} 25... Ra4 {[%clk 0:01:17.1]} 26. Nf4
{[%clk 0:01:57]} 26... Rxb4 {[%clk 0:01:15.8]} 27. Qc2 {[%clk 0:01:56.4]} 27...
Rxb1 {[%clk 0:01:13.9]} 28. Rxb1 {[%clk 0:01:54.9]} 28... Ra8 {[%clk 0:01:07.1]}
29. Nd3 {[%clk 0:01:54.1]} 29... Qa3 {[%clk 0:00:52.3]} 30. Ne5 {[%clk
0:01:46.8]} 30... Qd6 {[%clk 0:00:41.2]} 31. Rc1 {[%clk 0:01:41.3]} 31... Rc8
{[%clk 0:00:38.6]} 32. Nd3 {[%clk 0:01:40]} 32... Rc7 {[%clk 0:00:37.1]} 33. Nc5
{[%clk 0:01:38.1]} 33... Bc8 {[%clk 0:00:37.1]} 34. e4 {[%clk 0:01:31]} 34...
dxe4 {[%clk 0:00:36.5]} 35. Nxe4 {[%clk 0:01:30.5]} 35... Qxd4 {[%clk
0:00:35.6]} 36. Rd1 {[%clk 0:01:27]} 36... Qg7 {[%clk 0:00:34.8]} 37. Rd8 {[%clk
0:01:24.9]} 37... Bf5 {[%clk 0:00:31.9]} 38. Qc5 {[%clk 0:01:20.5]} 38... Bxe4
{[%clk 0:00:20.3]} 39. Bxe4 {[%clk 0:01:19.7]} 39... Rd7 {[%clk 0:00:16.8]} 40.
Qb6 {[%clk 0:01:12.8]} 40... Rxd8 {[%clk 0:00:16.2]} 41. Qxd8 {[%clk 0:01:12]}
41... Qa1+ {[%clk 0:00:17.1]} 42. Kh2 {[%clk 0:01:11.4]} 42... Qe5+ {[%clk
0:00:18]} 43. g3 {[%clk 0:01:08.8]} 43... Qxe4 {[%clk 0:00:18.9]} 44. Qc8 {[%clk
0:01:07.7]} 44... Qd5 {[%clk 0:00:19.8]} 45. Kg1 {[%clk 0:01:06.7]} 45... b4
{[%clk 0:00:20.3]} 46. h4 {[%clk 0:01:06.3]} 46... b3 {[%clk 0:00:21.2]} 47. Qb8
{[%clk 0:01:05.8]} 47... Qc4 {[%clk 0:00:20.8]} 48. h5 {[%clk 0:01:04.1]} 48...
Qc2 {[%clk 0:00:20.9]} 49. hxg6 {[%clk 0:01:03]} 49... b2 {[%clk 0:00:20.7]} 50.
gxf7+ {[%clk 0:01:01.5]} 50... Kxf7 {[%clk 0:00:20.1]} 51. Qf4+ {[%clk
0:00:57.7]} 51... Ke8 {[%clk 0:00:20]} 52. Qe5+ {[%clk 0:00:55.8]} 52... Be7
{[%clk 0:00:20.3]} 53. Qb8+ {[%clk 0:00:54.6]} 53... Kd7 {[%clk 0:00:20.4]} 54.
Qb7+ {[%clk 0:00:53.3]} 54... Ke6 {[%clk 0:00:20.3]} 55. Qc8+ {[%clk 0:00:52.1]}
55... Kd5 {[%clk 0:00:19.1]} 56. Qd7+ {[%clk 0:00:48.1]} 56... Bd6 {[%clk
0:00:18.9]} 57. Qf7+ {[%clk 0:00:47.4]} 57... Kc5 {[%clk 0:00:18.8]} 58. Qa7+
{[%clk 0:00:46]} 58... Kb4 {[%clk 0:00:18.3]} 59. Qb6+ {[%clk 0:00:43.6]} 59...
Kc3 {[%clk 0:00:15.4]} 60. Qxc6+ {[%clk 0:00:41.7]} 60... Kd2 {[%clk 0:00:15.2]}
61. Qxd6+ {[%clk 0:00:41]} 61... Qd3 {[%clk 0:00:10.3]} 62. Qxh6+ {[%clk
0:00:37.4]} 62... Kc2 {[%clk 0:00:06.9]} 63. Qc6+ {[%clk 0:00:36.2]} 63... Qc3
{[%clk 0:00:06.9]} 64. Qe4+ {[%clk 0:00:35]} 64... Kc1 {[%clk 0:00:06.5]} 65.
Qf4+ {[%clk 0:00:34.3]} 65... Qd2 {[%clk 0:00:06.6]} 66. Qc4+ {[%clk 0:00:32.8]}
66... Kd1 {[%clk 0:00:07.2]} 67. Qb3+ {[%clk 0:00:29]} 67... Ke2 {[%clk
0:00:07.1]} 68. Qb5+ {[%clk 0:00:24.8]} 68... Kd1 {[%clk 0:00:06.4]} 69. Qb3+
{[%clk 0:00:23.1]} 69... Kc1 {[%clk 0:00:06.6]} 70. Qc4+ {[%clk 0:00:22.2]}
70... Qc2 {[%clk 0:00:06.5]} 71. Qf4+ {[%clk 0:00:20.4]} 71... Kb1 {[%clk
0:00:05.6]} 72. Kg2 {[%clk 0:00:18.5]} 72... Ka1 {[%clk 0:00:05.4]} 73. Qd4
{[%clk 0:00:15.7]} 73... Qc6+ {[%clk 0:00:03.4]} 74. Kh2 {[%clk 0:00:14.9]}
74... Qc2 {[%clk 0:00:04.3]} 75. Kg2 {[%clk 0:00:14]} 75... Qc6+ {[%clk
0:00:03.5]} 76. Kh2 {[%clk 0:00:12.9]} 76... Qa6 {[%clk 0:00:03.7]} 77. Qc3
{[%clk 0:00:11]} 77... Ka2 {[%clk 0:00:04]} 78. Qc2 {[%clk 0:00:09.6]} 78...
Qh6+ {[%clk 0:00:03.8]} 79. Kg2 {[%clk 0:00:08.9]} 79... Qb6 {[%clk 0:00:03.9]}
80. Kh2 {[%clk 0:00:07.3]} 80... Qb3 {[%clk 0:00:03.9]} 81. Qd2 {[%clk
0:00:05.6]} 81... Ka1 {[%clk 0:00:04.2]} 82. Qd4 {[%clk 0:00:04.4]} 82... Ka2
{[%clk 0:00:03.9]} 83. Qd2 {[%clk 0:00:03.8]} 83... Ka3 {[%clk 0:00:04.3]} 84.
Qa5+ {[%clk 0:00:02.6]} 84... Qa4 {[%clk 0:00:04.1]} 85. Qc3+ {[%clk 0:00:02.1]}
85... Ka2 {[%clk 0:00:04.4]} 86. Qd2 {[%clk 0:00:01.2]} 86... Qc4 {[%clk
0:00:04.6]} 0-1

[Event "*** SCC Grand Prix: Titled Tuesday Blitz"]
[Site "Chess.com"]
[Date "2020.07.21"]
[Round "8"]
[White "ENEASZ"]
[Black "kleopl"]
[Result "1-0"]
[WhiteElo "2599"]
[BlackElo "2426"]
[TimeControl "180+1"]
[EndTime "11:38:15 PDT"]
[Termination "ENEASZ won by checkmate"]

1. e4 {[%clk 0:03:00.9]} 1... d5 {[%clk 0:02:59.1]} 2. exd5 {[%clk 0:02:57.6]}
2... Qxd5 {[%clk 0:03:00]} 3. Nc3 {[%clk 0:02:57.8]} 3... Qd6 {[%clk 0:03:00.2]}
4. d4 {[%clk 0:02:58.7]} 4... Nf6 {[%clk 0:03:00.6]} 5. Nf3 {[%clk 0:02:57.3]}
5... c6 {[%clk 0:03:00.7]} 6. Ne5 {[%clk 0:02:54.7]} 6... Nbd7 {[%clk
0:03:00.6]} 7. Nc4 {[%clk 0:02:55]} 7... Qc7 {[%clk 0:02:59.7]} 8. g3 {[%clk
0:02:55.5]} 8... Nb6 {[%clk 0:02:59.1]} 9. Bf4 {[%clk 0:02:54.9]} 9... Qd8
{[%clk 0:02:57.2]} 10. Nxb6 {[%clk 0:02:51.5]} 10... Qxb6 {[%clk 0:02:55.6]} 11.
Rb1 {[%clk 0:02:45.9]} 11... Bg4 {[%clk 0:02:53.7]} 12. f3 {[%clk 0:02:39.3]}
12... Bf5 {[%clk 0:02:51.4]} 13. Bc4 {[%clk 0:02:35.2]} 13... e6 {[%clk
0:02:46.4]} 14. O-O {[%clk 0:02:30.9]} 14... Rd8 {[%clk 0:02:28.7]} 15. Be3
{[%clk 0:02:29.5]} 15... Qc7 {[%clk 0:02:27.5]} 16. Qe2 {[%clk 0:02:27.8]} 16...
Be7 {[%clk 0:02:25.8]} 17. Rbd1 {[%clk 0:02:26.6]} 17... O-O {[%clk 0:02:25.6]}
18. g4 {[%clk 0:02:26.9]} 18... Bg6 {[%clk 0:02:24.8]} 19. f4 {[%clk 0:02:22]}
19... Qc8 {[%clk 0:02:13.7]} 20. Qg2 {[%clk 0:02:18.9]} 20... Nd5 {[%clk
0:02:02.9]} 21. Bd2 {[%clk 0:01:44.1]} 21... Bxc2 {[%clk 0:01:43.1]} 22. Rc1
{[%clk 0:01:42.2]} 22... Nb4 {[%clk 0:01:22.4]} 23. Ne2 {[%clk 0:01:18.4]} 23...
Bd3 {[%clk 0:01:18.1]} 24. Bxb4 {[%clk 0:01:18.2]} 24... Bxe2 {[%clk 0:01:08.2]}
25. Bxe7 {[%clk 0:01:16.9]} 25... Bxf1 {[%clk 0:01:08.2]} 26. Bxf1 {[%clk
0:01:14.2]} 26... Rxd4 {[%clk 0:01:02.5]} 27. Bxf8 {[%clk 0:01:14.3]} 27... Qxf8
{[%clk 0:01:03.2]} 28. f5 {[%clk 0:00:55]} 28... Qb4 {[%clk 0:00:56.6]} 29. h3
{[%clk 0:00:39.5]} 29... Rd2 {[%clk 0:00:55]} 30. Qf3 {[%clk 0:00:33.5]} 30...
Qd4+ {[%clk 0:00:45.9]} 31. Kh1 {[%clk 0:00:30.9]} 31... Qxb2 {[%clk 0:00:37.4]}
32. fxe6 {[%clk 0:00:24.5]} 32... fxe6 {[%clk 0:00:32.8]} 33. Re1 {[%clk
0:00:21.4]} 33... Qxa2 {[%clk 0:00:24.3]} 34. Bg2 {[%clk 0:00:17.3]} 34... h6
{[%clk 0:00:17.6]} 35. h4 {[%clk 0:00:16.6]} 35... a5 {[%clk 0:00:16]} 36. g5
{[%clk 0:00:14.8]} 36... hxg5 {[%clk 0:00:15.7]} 37. hxg5 {[%clk 0:00:15.7]}
37... Qc2 {[%clk 0:00:12.7]} 38. Rxe6 {[%clk 0:00:13.8]} 38... Qb1+ {[%clk
0:00:09.6]} 39. Kh2 {[%clk 0:00:12.5]} 39... Qh7+ {[%clk 0:00:09.6]} 40. Qh3
{[%clk 0:00:12.1]} 40... Qxh3+ {[%clk 0:00:07.7]} 41. Kxh3 {[%clk 0:00:13]}
41... a4 {[%clk 0:00:06.1]} 42. g6 {[%clk 0:00:12.6]} 42... Kf8 {[%clk 0:00:06]}
43. Re4 {[%clk 0:00:08]} 43... Rd6 {[%clk 0:00:05.6]} 44. Rxa4 {[%clk
0:00:05.7]} 44... Rxg6 {[%clk 0:00:05]} 45. Ra7 {[%clk 0:00:05.7]} 45... b5
{[%clk 0:00:04.9]} 46. Rc7 {[%clk 0:00:04.8]} 46... b4 {[%clk 0:00:03.2]} 47.
Bxc6 {[%clk 0:00:04.5]} 47... Rf6 {[%clk 0:00:03]} 48. Bd5 {[%clk 0:00:04.4]}
48... Rd6 {[%clk 0:00:02.6]} 49. Bc4 {[%clk 0:00:03.3]} 49... g6 {[%clk
0:00:02.6]} 50. Kg4 {[%clk 0:00:03.6]} 50... Rd4+ {[%clk 0:00:02.6]} 51. Kg5
{[%clk 0:00:03.9]} 51... Rd6 {[%clk 0:00:03]} 52. Rb7 {[%clk 0:00:03.3]} 52...
Rc6 {[%clk 0:00:02.3]} 53. Rxb4 {[%clk 0:00:02.7]} 53... Ke7 {[%clk 0:00:01.4]}
54. Bd3 {[%clk 0:00:02.9]} 54... Kd6 {[%clk 0:00:01.1]} 55. Bxg6 {[%clk
0:00:02.6]} 55... Kc5 {[%clk 0:00:01.1]} 56. Re4 {[%clk 0:00:02.3]} 56... Rd6
{[%clk 0:00:01.5]} 57. Re2 {[%clk 0:00:02.3]} 57... Rd5+ {[%clk 0:00:02.4]} 58.
Bf5 {[%clk 0:00:02.7]} 58... Rd4 {[%clk 0:00:03.1]} 59. Kf6 {[%clk 0:00:02.8]}
59... Kd5 {[%clk 0:00:03.1]} 60. Be6+ {[%clk 0:00:02.9]} 60... Kc5 {[%clk
0:00:03.1]} 61. Re1 {[%clk 0:00:03.8]} 61... Kd6 {[%clk 0:00:03.3]} 62. Rc1
{[%clk 0:00:03.8]} 62... Rf4+ {[%clk 0:00:03.5]} 63. Bf5 {[%clk 0:00:04.3]}
63... Rd4 {[%clk 0:00:03.6]} 64. Rc8 {[%clk 0:00:04.4]} 64... Kd5 {[%clk
0:00:03.3]} 65. Rg8 {[%clk 0:00:05.3]} 65... Kc5 {[%clk 0:00:03.2]} 66. Ke5
{[%clk 0:00:05.2]} 66... Rd5+ {[%clk 0:00:03.6]} 67. Ke4 {[%clk 0:00:05.7]}
67... Rd4+ {[%clk 0:00:04]} 68. Ke3 {[%clk 0:00:06]} 68... Rd6 {[%clk
0:00:04.1]} 69. Be4 {[%clk 0:00:06.2]} 69... Re6 {[%clk 0:00:04.4]} 70. Rc8+
{[%clk 0:00:06.2]} 70... Kd6 {[%clk 0:00:04.4]} 71. Rc2 {[%clk 0:00:07.1]} 71...
Re5 {[%clk 0:00:04.2]} 72. Kd4 {[%clk 0:00:07.4]} 72... Ra5 {[%clk 0:00:04.4]}
73. Rc6+ {[%clk 0:00:07.2]} 73... Kd7 {[%clk 0:00:04.7]} 74. Rh6 {[%clk
0:00:08.1]} 74... Ra4+ {[%clk 0:00:04.9]} 75. Ke5 {[%clk 0:00:08.5]} 75... Ra5+
{[%clk 0:00:04.8]} 76. Bd5 {[%clk 0:00:09.1]} 76... Kc7 {[%clk 0:00:05]} 77.
Rh7+ {[%clk 0:00:09.6]} 77... Kb6 {[%clk 0:00:05.4]} 78. Rb7+ {[%clk 0:00:10.5]}
78... Kc5 {[%clk 0:00:05.1]} 79. Rb1 {[%clk 0:00:11.4]} 79... Ra4 {[%clk
0:00:05]} 80. Rc1+ {[%clk 0:00:11.4]} 80... Kb6 {[%clk 0:00:05.2]} 81. Kd6
{[%clk 0:00:11.8]} 81... Rb4 {[%clk 0:00:05.4]} 82. Rc8 {[%clk 0:00:11.5]} 82...
Ka5 {[%clk 0:00:05.4]} 83. Kc5 {[%clk 0:00:11]} 83... Rb5+ {[%clk 0:00:04.7]}
84. Kd4 {[%clk 0:00:11.1]} 84... Rb4+ {[%clk 0:00:04.9]} 85. Bc4 {[%clk
0:00:11.4]} 85... Kb6 {[%clk 0:00:04]} 86. Rb8+ {[%clk 0:00:11.5]} 86... Ka5
{[%clk 0:00:04.2]} 87. Rg8 {[%clk 0:00:12.4]} 87... Kb6 {[%clk 0:00:03.9]} 88.
Kd5 {[%clk 0:00:12.9]} 88... Ka5 {[%clk 0:00:03.4]} 89. Ra8+ {[%clk 0:00:12.8]}
89... Kb6 {[%clk 0:00:03.5]} 90. Rb8+ {[%clk 0:00:13.7]} 90... Ka5 {[%clk
0:00:03.6]} 91. Rg8 {[%clk 0:00:14.6]} 91... Kb6 {[%clk 0:00:03.8]} 92. Rg7
{[%clk 0:00:14.3]} 92... Ka5 {[%clk 0:00:02.3]} 93. Bd3 {[%clk 0:00:14.2]} 93...
Kb6 {[%clk 0:00:02.3]} 94. Rg6+ {[%clk 0:00:14.5]} 94... Ka5 {[%clk 0:00:02.6]}
95. Ra6# {[%clk 0:00:14.6]} 1-0

[Event "*** SCC Grand Prix: Titled Tuesday Blitz"]
[Site "Chess.com"]
[Date "2020.07.21"]
[Round "8"]
[White "ketster"]
[Black "vovachesss"]
[Result "1/2-1/2"]
[WhiteElo "2363"]
[BlackElo "2575"]
[TimeControl "180+1"]
[EndTime "11:38:59 PDT"]
[Termination "Game drawn - insufficient material"]

1. d4 {[%clk 0:03:00.9]} 1... e5 {[%clk 0:02:09.1]} 2. dxe5 {[%clk 0:02:52]}
2... Nc6 {[%clk 0:02:08.8]} 3. Nf3 {[%clk 0:02:51.5]} 3... Qe7 {[%clk
0:02:08.2]} 4. g3 {[%clk 0:02:49.3]} 4... Nxe5 {[%clk 0:02:07.8]} 5. Nxe5 {[%clk
0:02:49.6]} 5... Qxe5 {[%clk 0:02:08]} 6. Bg2 {[%clk 0:02:50.2]} 6... Nf6 {[%clk
0:02:08.1]} 7. O-O {[%clk 0:02:50.2]} 7... Be7 {[%clk 0:02:08.2]} 8. Nc3 {[%clk
0:02:50.2]} 8... O-O {[%clk 0:02:07]} 9. Bf4 {[%clk 0:02:50.5]} 9... Qc5 {[%clk
0:02:07]} 10. e4 {[%clk 0:02:43.1]} 10... d6 {[%clk 0:02:06.1]} 11. Be3 {[%clk
0:02:41.4]} 11... Qb4 {[%clk 0:02:02.8]} 12. Rb1 {[%clk 0:02:34.4]} 12... Be6
{[%clk 0:01:59.3]} 13. a3 {[%clk 0:02:32.7]} 13... Qa5 {[%clk 0:01:58.4]} 14. h3
{[%clk 0:02:25.5]} 14... Rad8 {[%clk 0:01:54.6]} 15. Nd5 {[%clk 0:02:17.8]}
15... Nxd5 {[%clk 0:01:51.8]} 16. exd5 {[%clk 0:02:17.6]} 16... Bf5 {[%clk
0:01:52.4]} 17. Qe2 {[%clk 0:02:04.9]} 17... Bf6 {[%clk 0:01:50.5]} 18. Qc4
{[%clk 0:01:57.9]} 18... Rfe8 {[%clk 0:01:48.4]} 19. Qb3 {[%clk 0:01:40.8]}
19... b6 {[%clk 0:01:46.7]} 20. Rbd1 {[%clk 0:01:38.3]} 20... Be4 {[%clk
0:01:42.9]} 21. Rfe1 {[%clk 0:01:31.8]} 21... Bxg2 {[%clk 0:01:37.5]} 22. Kxg2
{[%clk 0:01:32.7]} 22... h5 {[%clk 0:01:35.6]} 23. c4 {[%clk 0:01:32.5]} 23...
Qa6 {[%clk 0:01:31.1]} 24. h4 {[%clk 0:01:30.1]} 24... Re4 {[%clk 0:01:25.1]}
25. Rc1 {[%clk 0:01:26.4]} 25... Rde8 {[%clk 0:01:24.5]} 26. f3 {[%clk 0:01:18]}
26... R4e7 {[%clk 0:01:19.8]} 27. Bf2 {[%clk 0:01:16.2]} 27... Qc8 {[%clk
0:01:19.1]} 28. Qc2 {[%clk 0:01:08.6]} 28... g6 {[%clk 0:01:02]} 29. b3 {[%clk
0:01:06.4]} 29... Qd7 {[%clk 0:00:53.2]} 30. Qd2 {[%clk 0:01:04]} 30... Qf5
{[%clk 0:00:50.7]} 31. a4 {[%clk 0:00:42.9]} 31... a5 {[%clk 0:00:46.1]} 32.
Rxe7 {[%clk 0:00:36.2]} 32... Rxe7 {[%clk 0:00:45.7]} 33. Re1 {[%clk 0:00:36.4]}
33... Rxe1 {[%clk 0:00:45.2]} 34. Bxe1 {[%clk 0:00:35.3]} 34... Qb1 {[%clk
0:00:45.5]} 35. Qe3 {[%clk 0:00:34.6]} 35... Qc2+ {[%clk 0:00:41.2]} 36. Bf2
{[%clk 0:00:34.2]} 36... Bc3 {[%clk 0:00:39.1]} 37. Kh3 {[%clk 0:00:27]} 37...
Qxb3 {[%clk 0:00:28]} 38. Be1 {[%clk 0:00:26.1]} 38... Qd1 {[%clk 0:00:13.2]}
39. Qxc3 {[%clk 0:00:19.2]} 39... f6 {[%clk 0:00:11.6]} 40. Qd2 {[%clk
0:00:17.2]} 40... Qxa4 {[%clk 0:00:11.6]} 41. Qe2 {[%clk 0:00:15.7]} 41... Qd7+
{[%clk 0:00:08.5]} 42. g4 {[%clk 0:00:13.9]} 42... Kf7 {[%clk 0:00:08.5]} 43.
Bc3 {[%clk 0:00:12.9]} 43... hxg4+ {[%clk 0:00:08.1]} 44. fxg4 {[%clk
0:00:13.2]} 44... f5 {[%clk 0:00:08.6]} 45. Qf3 {[%clk 0:00:12.3]} 45... a4
{[%clk 0:00:08]} 46. gxf5 {[%clk 0:00:12]} 46... gxf5 {[%clk 0:00:08.1]} 47. Kg3
{[%clk 0:00:11.8]} 47... Kg6 {[%clk 0:00:07.3]} 48. Qf4 {[%clk 0:00:11.2]} 48...
Qe7 {[%clk 0:00:07.5]} 49. Qf3 {[%clk 0:00:04]} 49... a3 {[%clk 0:00:04.3]} 50.
Kh3 {[%clk 0:00:04.3]} 50... a2 {[%clk 0:00:04]} 51. Qg3+ {[%clk 0:00:04.2]}
51... Kh7 {[%clk 0:00:04.5]} 52. Qf3 {[%clk 0:00:03.4]} 52... Qf7 {[%clk
0:00:02.5]} 53. Qg3 {[%clk 0:00:03.2]} 53... f4 {[%clk 0:00:02.2]} 54. Qd3+
{[%clk 0:00:02.5]} 54... Kh6 {[%clk 0:00:02.1]} 55. Qf3 {[%clk 0:00:02.2]} 55...
Qf5+ {[%clk 0:00:01.8]} 56. Kg2 {[%clk 0:00:02.3]} 56... Qc2+ {[%clk 0:00:01.8]}
57. Kh3 {[%clk 0:00:02.8]} 57... Qf5+ {[%clk 0:00:02.2]} 58. Kg2 {[%clk
0:00:03.1]} 58... Qc2+ {[%clk 0:00:02.3]} 59. Kh3 {[%clk 0:00:03.7]} 59... Kg6
{[%clk 0:00:01.1]} 60. Kg4 {[%clk 0:00:03.8]} 60... Kf7 {[%clk 0:00:01.5]} 61.
Kxf4 {[%clk 0:00:03.9]} 61... Ke7 {[%clk 0:00:02.1]} 62. Kg3 {[%clk 0:00:04.3]}
62... Kd7 {[%clk 0:00:02.5]} 63. Qe3 {[%clk 0:00:04.8]} 63... Kc8 {[%clk
0:00:03]} 64. Qd4 {[%clk 0:00:05.2]} 64... Kb7 {[%clk 0:00:03.3]} 65. Kf4 {[%clk
0:00:05.7]} 65... Qc1+ {[%clk 0:00:03.1]} 66. Kg4 {[%clk 0:00:05.5]} 66... Qc2
{[%clk 0:00:02.7]} 67. Kf3 {[%clk 0:00:05.5]} 67... Qf5+ {[%clk 0:00:02.6]} 68.
Ke2 {[%clk 0:00:05.5]} 68... Qc2+ {[%clk 0:00:02.7]} 69. Ke1 {[%clk 0:00:05.4]}
69... Qc1+ {[%clk 0:00:02.4]} 70. Ke2 {[%clk 0:00:05.9]} 70... Qc2+ {[%clk
0:00:02.9]} 71. Qd2 {[%clk 0:00:05.9]} 71... Qe4+ {[%clk 0:00:02.8]} 72. Kd1
{[%clk 0:00:06.2]} 72... Qxc4 {[%clk 0:00:03.2]} 73. Qb2 {[%clk 0:00:06.3]}
73... Qxd5+ {[%clk 0:00:03.5]} 74. Kc1 {[%clk 0:00:06.8]} 74... Qc4 {[%clk
0:00:03.9]} 75. Kc2 {[%clk 0:00:05.9]} 75... d5 {[%clk 0:00:04.2]} 76. Qb3
{[%clk 0:00:02.2]} 76... Qe4+ {[%clk 0:00:04.2]} 77. Kd2 {[%clk 0:00:02.3]}
77... d4 {[%clk 0:00:04.5]} 78. Ba1 {[%clk 0:00:01.8]} 78... Qg2+ {[%clk
0:00:04.8]} 79. Kc1 {[%clk 0:00:02.2]} 79... Qf1+ {[%clk 0:00:04.8]} 80. Qd1
{[%clk 0:00:02.6]} 80... Qc4+ {[%clk 0:00:03.8]} 81. Qc2 {[%clk 0:00:03.1]}
81... Qf1+ {[%clk 0:00:04.5]} 82. Qd1 {[%clk 0:00:03.5]} 82... Qf4+ {[%clk
0:00:05.4]} 83. Qd2 {[%clk 0:00:03.8]} 83... Qxh4 {[%clk 0:00:05.7]} 84. Qxd4
{[%clk 0:00:03.4]} 84... Qe1+ {[%clk 0:00:06]} 85. Qd1 {[%clk 0:00:03.5]} 85...
Qe3+ {[%clk 0:00:06.4]} 86. Qd2 {[%clk 0:00:03.6]} 86... Qb3 {[%clk 0:00:06.5]}
87. Qc2 {[%clk 0:00:03.5]} 87... Qd5 {[%clk 0:00:05.6]} 88. Kb2 {[%clk
0:00:03.6]} 88... b5 {[%clk 0:00:05.8]} 89. Qb3 {[%clk 0:00:03.9]} 89... Qd2+
{[%clk 0:00:06]} 90. Ka3 {[%clk 0:00:04]} 90... Ka6 {[%clk 0:00:05.6]} 91. Qxa2
{[%clk 0:00:03.7]} 91... Qc1+ {[%clk 0:00:05.2]} 92. Qb2 {[%clk 0:00:03.4]}
92... Qc4 {[%clk 0:00:05]} 93. Qb3 {[%clk 0:00:03.2]} 93... Qc1+ {[%clk
0:00:05]} 94. Bb2 {[%clk 0:00:03.6]} 94... Qc5+ {[%clk 0:00:05.5]} 95. Ka2
{[%clk 0:00:03.8]} 95... c6 {[%clk 0:00:05.3]} 96. Qe6 {[%clk 0:00:03.8]} 96...
Qb4 {[%clk 0:00:05.3]} 97. Qb3 {[%clk 0:00:04.1]} 97... Qc5 {[%clk 0:00:05]} 98.
Qa3+ {[%clk 0:00:04.7]} 98... Qxa3+ {[%clk 0:00:04.5]} 99. Kxa3 {[%clk
0:00:05.6]} 99... Kb6 {[%clk 0:00:05.4]} 100. Bc3 {[%clk 0:00:06.1]} 100... c5
{[%clk 0:00:06]} 101. Kb3 {[%clk 0:00:06.5]} 101... Kc6 {[%clk 0:00:06.4]} 102.
Bd2 {[%clk 0:00:06.9]} 102... Kd5 {[%clk 0:00:06.5]} 103. Be1 {[%clk 0:00:07.3]}
103... Kd4 {[%clk 0:00:06.5]} 104. Bd2 {[%clk 0:00:07.7]} 104... Kd3 {[%clk
0:00:06.8]} 105. Ba5 {[%clk 0:00:08]} 105... b4 {[%clk 0:00:06]} 106. Bxb4
{[%clk 0:00:07.8]} 106... c4+ {[%clk 0:00:06.2]} 107. Kb2 {[%clk 0:00:07.3]}
107... c3+ {[%clk 0:00:07.1]} 108. Bxc3 {[%clk 0:00:07.6]} 1/2-1/2